Cogmind - Beta 13 @@@ ROGUE MODE // 2024.04.15 @ 11:49:35 Player: Thaleia Result: Destroyed by as-97889 with Assembled Blade Performance ------------- Evolutions (0) 0 Regions Visited (2) 400 Robots Destroyed (16) 80 Value Destroyed (401) 401 Prototype IDs (0) 0 Alien Tech Used (0) 0 Bonus (0) 0 TOTAL SCORE: 881 Bonus ------- None Cogmind --------- Core Integrity 0/250 Matter 84/300 Energy 100/100 System Corruption 17% Temperature Cool (0) Movement Rolling (110) Ox2 Location -10/Mines Parts ------- > --- POWER (1) -------- (None) > --- PROPULSION (2) --- Wheel > --- UTILITY (2) ------ Large Storage Unit > --- WEAPON (2) ------- Improved Light Cannon > --- INVENTORY (15) --- Ion Engine Ion Engine Light Ion Engine Light Treads Light Treads Light Treads Wheel High-capacity Storage Unit High-capacity Matter Pod (0) Light Armor Plating Assault Rifle Light Assault Rifle Makeshift Spear Peak State ------------ > --- POWER ------------ Ion Engine > --- PROPULSION ------- Light Treads Light Treads > --- UTILITY ---------- Large Storage Unit Targeting Computer > --- WEAPON ----------- Improved Light Cannon Mini Grenade Launcher > --- INVENTORY -------- Ion Engine Light Ion Engine Light Treads Light Treads Light Treads Wheel Wheel High-capacity Storage Unit High-capacity Matter Pod Core Shielding Light Armor Plating Assault Rifle Light Assault Rifle Improved Light Cannon Grenade Launcher [Rating: 10] Favorites ----------- Power Ion Engine Engine Ion Engine Propulsion Light Treads Treads Light Treads Wheel Wheel Utility Targeting Computer Storage Large Storage Unit Processor Targeting Computer Protection Core Shielding Weapon Assault Rifle Ballistic Gun Assault Rifle Ballistic Cannon Improved Light Cannon Launcher Mini Grenade Launcher Build | -11 -10 -10 ------- Run | Yrd Mat Min Slots Evolved . | . . . Power . | . . . Propulsion . | . . . Utility . | . . . Weapon . | . . . Parts Attached 27 | 6 12 9 Power 5 | 1 3 1 Engine 5 | 1 3 1 Core . | . . . Reactor . | . . . Propulsion 5 | 2 2 1 Treads 4 | 2 2 . Leg . | . . . Wheel 1 | . . 1 Hover . | . . . Flight . | . . . Utility 6 | 1 4 1 Device . | . . . Storage 4 | 1 3 . Processor 1 | . 1 . Hackware . | . . . Protection 1 | . . 1 Artifact . | . . . Weapon 11 | 2 3 6 Energy Gun . | . . . Energy Cannon . | . . . Ballistic Gun 4 | 2 . 2 Ballistic Cannon 2 | . 1 1 Launcher 5 | . 2 3 Special Weapon . | . . . Impact Weapon . | . . . Slashing Weapon . | . . . Piercing Weapon . | . . . Special Melee Weapon . | . . . Unidentified Prototypes . | . . . Parts Lost 7 | . . 7 Power 1 | . . 1 Propulsion 2 | . . 2 Utility 2 | . . 2 Weapon 2 | . . 2 Highest Loss Streak 5 | . . 5 To Critical Strikes . | . . . Average Slot Usage (%) 96 | . 98 92 Engine 14 | . 14 14 Treads 27 | . 28 27 Storage 14 | . 14 14 Processor 11 | . 12 7 Ballistic Gun 16 | . 19 7 Ballistic Cannon 8 | . 7 12 Launcher 2 | . 1 6 Naked Turns . | . . . Heaviest Build 32 | 11 31 32 Greatest Support 40 | 40 40 40 Greatest Overweight (x) 9 | 3 . 9 Average Overweight (x) . | . . . Largest Inventory Capacity 20 | 8 20 15 Average Capacity 13 | 7 13 15 Most Carried 15 | 3 15 15 Average Carried 10 | 2 10 14 Final Capacity 15 | 8 15 15 Final Carried 15 | 3 15 13 Class Distribution -------------------- 100% | Mutant Dominant Class ---------------- Mutant | -10/Materials Mutant | -10/Mines Resources | -11 -10 -10 ----------- Run | Yrd Mat Min Matter Collected 544 | 171 264 109 Remotely . | . . . Salvage Created 383 | . 342 41 Parts 29 | . 26 3 Haulers Intercepted . | . . . Recyclers Shooed 3 | . 2 1 Parts Field Recycled . | . . . Retrieved Matter . | . . . Parts Self-Destructed . | . . . Prevented . | . . . Kills | -11 -10 -10 ------- Run | Yrd Mat Min Combat Hostiles Destroyed 21 | . 13 8 Guns 6 | . 6 . Cannons 9 | . 4 5 AOE 6 | . 3 3 Classes Destroyed 6 | . 3 3 Worker 1 | . . 1 Watcher 1 | . 1 . Swarmer 6 | . 6 . Grunt 7 | . 7 . Demolisher 1 | . . 1 Assembled 7 | . . 7 Best Kill Streak 5 | . 3 5 Combat Bots Only 5 | . 3 5 Max Kills in Single Turn 2 | . 2 2 Gunslinging . | . . . Exploded 2 | . 2 2 Melee . | . . . Uniques/NPCs Destroyed . | . . . Combat | -11 -10 -10 -------- Run | Yrd Mat Min Hostile Shots Fired 83 | . 43 40 Missed 22 | . 12 10 Damage Taken 1192 | . 288 904 Core 262 | . 55 207 Absorbed by Shields . | . . . Redirected to Shielding 20 | . . 20 Regen/Repaired (Parts) 123 | . 123 . Core Remaining (%) 100 | 100 . . Volleys Fired 49 | . 25 24 Largest 2 | . 2 2 Hottest 69 | . 59 69 Shots Fired 86 | . 50 36 Gun 42 | . 38 4 Cannon 35 | . 10 25 Launcher 9 | . 2 7 Special . | . . . Kinetic 77 | . 48 29 Thermal . | . . . Explosive 9 | . 2 7 Electromagnetic . | . . . Robot Hit Streak 8 | . 8 5 Robot Miss Streak 3 | . 3 2 Penetration Max . | . . . Secondary Targets . | . . . Shots Hit Robots 57 | . 34 23 Core Hits 39 | . 22 17 Critical Kills . | . . . Critical Parts Destroyed . | . . . Critical Strikes 1 | . 1 . Blast 1 | . 1 . Melee Attacks . | . . . Impact . | . . . Slashing . | . . . Piercing . | . . . Sneak Attacks . | . . . Combat Hostiles . | . . . Follow-up Attacks . | . . . Damage Inflicted 1381 | . 673 708 Guns 306 | . 296 10 Cannons 534 | . 159 375 Explosions 536 | . 213 323 Melee . | . . . Ramming 5 | . 5 . Kinetic 840 | . 455 385 Thermal . | . . . Explosive 536 | . 213 323 Electromagnetic . | . . . Impact . | . . . Slashing . | . . . Piercing . | . . . Highest Corruption 17 | . . 17 Average Corruption 3 | . . 3 Corruption Purged . | . . . Corruption Blocked . | . . . Effects 6 | . . 6 Matter Fused 1 | . . 1 Energy Discharges 1 | . . 1 Parts Fused 1 | . . 1 Misfires 1 | . . 1 Misdirections 1 | . . 1 Weapon Failures 1 | . . 1 Overload Shots . | . . . Overflow Damage 49 | . . 49 Projectiles 15 | . . 15 Explosions 34 | . . 34 Melee . | . . . Knockbacks 4 | . 3 1 Impact . | . . . Kinetic 4 | . 3 1 Secondary . | . . . Self-Inflicted Damage . | . . . Shots . | . . . Rammed 3 | . 2 1 Targets Rammed 3 | . 2 1 Kicked . | . . . Crushed . | . . . Highest Temperature 45 | . 9 45 Average Temperature 15 | . 5 19 Received Heat Transfer 81 | . 81 . Siege Activations . | . . . Robots Corrupted . | . . . Combat Hostiles . | . . . Parts Fried . | . . . Impact Corruptions . | . . . Robots Melted . | . . . Combat Hostiles . | . . . Parts Melted . | . . . Heat Transferred . | . . . Parts Sabotaged . | . . . Parts Stolen . | . . . Parts Stripped . | . . . Power Chain Reactions . | . . . Alert | -11 -10 -10 ------- Run | Yrd Mat Min Peak Influence 248 | . 248 81 Initial 27 | . . 27 Average 107 | . 132 49 Maximum Alert Level 1 | . 1 . Low Security (%) 90 | 100 86 100 Level 1 9 | . 13 . Level 2 . | . . . Level 3 . | . . . Level 4 . | . . . Level 5 . | . . . High Security . | . . . Max Security . | . . . Squads Dispatched 2 | . 2 . Investigation . | . . . Extermination . | . . . Reinforcement 2 | . 2 . Assault . | . . . Garrison . | . . . Intercept . | . . . Searches Triggered . | . . . Construction Impeded . | . . . Haulers Reinforced . | . . . Active Scanning Responses . | . . . Cargo Convoy Interrupts . | . . . Stealth | -11 -10 -10 --------- Run | Yrd Mat Min Distress Signals 1 | . 1 . Communications Jammed . | . . . Distress Signals . | . . . Times Spotted 36 | . 23 13 Peak Tracking Total 4 | . 4 4 Tactical Retreats 4 | . 2 2 Traps | -11 -10 -10 ------- Run | Yrd Mat Min Traps Triggered 1 | . 1 . Indirectly . | . . . Trap Hack Attempts . | . . . Triggered . | . . . Disarmed . | . . . Reprogrammed . | . . . Reused . | . . . Traps Extracted . | . . . Installed . | . . . Triggered . | . . . Objects Rigged 1 | . 1 . Exploded 1 | . 1 . Machines | -11 -10 -10 ---------- Run | Yrd Mat Min Machines Disabled 2 | . 2 . Max in Single Turn 2 | . 2 . Machines Repaired . | . . . Machines Dismantled . | . . . Machines Sabotaged . | . . . Overloaded Fab Kills . | . . . Hacking | -11 -10 -10 --------- Run | Yrd Mat Min Machines Accessed 3 | . 3 . Terminals 2 | . 2 . Fabricators . | . . . Repair Stations 1 | . 1 . Recycling Units . | . . . Scanalyzers . | . . . Garrison Access . | . . . Total Hacks 10 | . 10 . Successful 7 | . 7 . Failed 3 | . 3 . Catastrophic . | . . . Database Lockouts . | . . . Manual 1 | . 1 . Terminals 5 | . 5 . Fabricators . | . . . Repair Stations 5 | . 5 . Recycling Units . | . . . Scanalyzers . | . . . Garrison Access . | . . . Terminal Hacks 2 | . 2 . Locate Traps 1 | . 1 . Zone Layout 1 | . 1 . Fabricator Hacks . | . . . Repair Station Hacks 4 | . 4 . Scan Component 2 | . 2 . Repair 2 | . 2 . Recycling Unit Hacks . | . . . Scanalyzer . | . . . Garrison Access Hacks . | . . . Unauthorized Hacks 1 | . 1 . Terminals 1 | . 1 . Detonate 1 | . 1 . Fabricators . | . . . Repair Stations . | . . . Recycling Units . | . . . Scanalyzers . | . . . Garrison Access . | . . . Data Cores Recovered . | . . . Used . | . . . Hacking Detections 1 | . 1 . Full Trace Events . | . . . Feedback Events . | . . . Feedback Blocked . | . . . Robot Schematics Acquired . | . . . Robots Built . | . . . Authchips . | . . . Time . | . . . Total Robot Build Rating . | . . . Part Schematics Acquired . | . . . Parts Built . | . . . Authchips . | . . . Time . | . . . Total Part Build Rating . | . . . Parts Repaired 2 | . 2 . Time 52 | . 52 . Parts Recycled . | . . . Recycled Matter . | . . . Retrieved Matter . | . . . Retrieved Components . | . . . Parts Scanalyzed . | . . . Part Schematics Acquired . | . . . Parts Damaged . | . . . Bothacking | -11 -10 -10 ------------ Run | Yrd Mat Min Used RIF Installer . | . . . Robots Hacked . | . . . Non-combat . | . . . Combat . | . . . Robot Hacks Applied . | . . . Relay Couplers Released . | . . . Fabnet Peak Effective % . | . . . Robots Rewired . | . . . Allies Hacked . | . . . Hacks Repelled . | . . . Allies | -11 -10 -10 -------- Run | Yrd Mat Min Total Allies . | . . . Largest Group . | . . . Highest-Rated Group . | . . . Highest-Rated Ally . | . . . Total Orders . | . . . Ally Attacks . | . . . Total Damage . | . . . Kills . | . . . Allies Corrupted . | . . . Allies Melted . | . . . Intel | -11 -10 -10 ------- Run | Yrd Mat Min Robot Analysis Total . | . . . Derelict Logs Recovered . | . . . Drone Launches . | . . . Drone Recoveries . | . . . Exploration | -11 -10 -10 ------------- Run | Yrd Mat Min Turns Passed 1726 | 125 1272 329 Spaces Moved 907 | 81 670 156 Core 34 | 33 . 1 Treads 873 | 48 670 155 Legs . | . . . Wheels . | . . . Hover . | . . . Flight . | . . . Fastest Speed 50 | 50 160 160 Average Speed 158 | 139 160 162 Slowest Speed 500 | 200 160 500 Overloaded Moves . | . . . Propulsion Burnouts . | . . . Robots Hopped . | . . . Cave-ins Triggered . | . . . Exploration Rate (%) 31 | 5 55 33 Regions Visited 2 Branch Regions 1 Pre-discovered Areas . | . . . Known Exits Taken . | . . . Unknown Exits Taken 2 | 1 1 . Scrap Searched . | . . . Spaces Dug . | . . . Terrain Destroyed 74 | . 46 28 Melee . | . . . Projectile 3 | . . 3 AOE 71 | . 46 25 Terrain Rammed . | . . . Walls Destroyed . | . . . Machines Disabled . | . . . Actions | -11 -10 -10 --------- Run | Yrd Mat Min Total 1103 | 91 819 193 Wait 90 | . 90 . Move 905 | 80 669 156 Hop . | . . . Pick Up 22 | 5 15 2 Fast Attach 6 | 4 2 . Attach 5 | 2 . 3 Detach . | . . . Swap 16 | . 10 6 Drop 7 | . 6 1 Fire 49 | . 25 24 Melee . | . . . Ram . | . . . Kick . | . . . Crush 3 | . 2 1 Escape Stasis . | . . . Rewire . | . . . Trap . | . . . Miscellaneous . | . . . Route ------- -11/Scrapyard -10/Materials (discovered 3 exits: [*Mat] / [*Min x2]) -10/Mines History --------- Turn | Location | Event 58 | -11/Scrapyard | Discovered new exit (range 13) 126 | -11/Scrapyard | Entered Materials 307 | -10/Materials | Build established: Mutant 482 | -10/Materials | Discovered new exit (range 15) 792 | -10/Materials | Repaired Lgt. Treads 823 | -10/Materials | Repaired Lgt. Treads 872 | -10/Materials | Discovered new exit (range 3) 884 | -10/Materials | Discovered new exit (range 16) 1398 | -10/Materials | Entered Mines 1470 | -10/Mines | Assembled infested the area 1583 | -10/Mines | Core integrity fell below 50% 1680 | -10/Mines | A weapon hastily lodged in a ceiling crevice suddenly fell to the ground 1714 | -10/Mines | System corruption reached 10% 1723 | -10/Mines | Core integrity fell below 20% 1727 | -10/Mines | Destroyed by as-97889 with Assembled Blade Last Messages --------------- 01713_ System corrupted by crushing effect (+3). 01715_ System corrupted: FCS attempts to trigger Imp. Light Cannon. 01715_ System corrupted: Imp. Light Cannon misfires. 01715_ System corrupted: Mni. Grenade Launcher failed to launch. 01716_ Knocked back. 01717_ as-97889 sneak attacks. 01717_ K-01 Serf destroyed. 01718_ Acquired 1 matter. 01719_ R-06 Scavenger collects Med. Matter Pod. 01722_ Mni. Grenade Launcher destroyed. 01722_ System corrupted by crushing effect (+1). 01723_ Dropped Wheel. 01723_ R-06 Scavenger collects Wheel. 01724_ Acquired Wheel. 01725_ Lgt. Ion Engine destroyed. 01725_ System corrupted by crushing effect (+5). 01727_ Core Shielding destroyed. Map ----- +----------------------------------------------------+ | ??????????# ### #????????????? | | ???????????# ####????????????? | | #########?## #???????????????? | | ## #####???????????????? | | ##???????????????????? | | ???# ####????????????????????? | | ???# ##???????????????????????? | | ???## "##??????????????????????? | | ????# ####???????????????????? | | ????# ! ##??????????????????? | | ????## % ##?????????????????? | | ????# % ##????????????????? | | ????## !%= % ###??????????????? | | ?????## |=|! ##?????????????? | | ??????# !%*** #?????????????? | | ??????# ## ! # #?????????????? | | ????? ?## # ### % #?????????????????? | | ????### ??## ### # #?????????????????? | | ??????# ???######?### #?????????????????? | | ??????# ????????????## %#####?????????##????? | | ??????###?????????????# ;#????????# ##???? | | ??????????????????????# ;???###### #???? | | ??????????????????????#### r##### ## #????? | | ??????????????????????## #?????? | | ??????????????????????# a ### #?????? | | ?????????????????????## @a #?## ###???? | | ????????????????????## ##??# #???? | | ????????????????????# ##??## ### #???? | | ????????????????????# #???# #???#???? | | ????????????????????## ##??# ##???????? | | ?????????????????????######??# ##????????? | | ?????????????????????????????# ##?????????? | | ?????????????????????????????## ##??????????? | | ??????????????????????????????###????????????? | | ?????????????????????????????????????????????? | | ?????????????????????????????????????????????? | | ?????????????????????????????????????????????? | | ?????????????????????????????????????????????? | | ?????????????????????????????????????????????? | | ?????????????????????????????????????????????? | | ?????????????????????????????????????????????? | | ?????????????????????????????????????????????? | | ?????????????????????????????????????????????? | | ?????????????????????????????????????????????? | | ?????????????????????????????????????????????? | | ?????????????????????????????????????????????? | | | | | | | | | +----------------------------------------------------+ Best States ------------- Heat Dissipation 25 Energy Generation 10 Energy Capacity 250 Matter Stores 300 Matter Capacity 300 Sight Range 16 Terrain Scan Density 10 Core Shielding 20 Evasion (%) 50 Targeting Accuracy 5 Recoil Reduction 2 Item Schematics ----------------- None Robot Schematics ------------------ None Fabricated ------------ Nothing Alien Tech Used ----------------- None Achievements -------------- None Challenges ------------ None Game ------ Seed GodAssembledBroadsword Manual? 0 Play Time 00:13:31 Cumulative 5.6 hours Start 2024.04.15 @ 11:35:56 End 2024.04.15 @ 11:49:35 Sessions 1 Manual Loads 0 Difficulty Rogue Special Mode None Game No. 16 Rogue 16 Adventurer 0 Explorer 0 Win Type - Total 0 Types 0/0/0/0/0/0/0/0/0 Lore% 7 Gallery% 9 Achievement% 10 Wizard Run 0 Options --------- Layout 1 ASCII 0 Keyboard 1 Movement Arrows Keybinds 0 Fullscreen 1 Font 32/Tamsyn Map View 50x40 Zoom Use 0% Tactical HUD 1 Map Filters NONE Filters NONE Steam 0 RUN: cff472f2-44d1-4f38-afc6-c085dfd24ff8